bitfinex-derivatives/quotes_BTCF0:USTF0_20250711
["timestamp","ask_amount","ask_price","bid_price","bid_amount"]
[1752235174427,0.88584446,117950.0,117940.0,0.71749012]
[1752235174724,1.29304148,117950.0,117940.0,0.71749012]
[1752235176517,1.29304148,117950.0,117940.0,0.3102931]
[1752235176713,1.29304148,117950.0,117940.0,0.71749012]
[1752235178225,0.88584446,117950.0,117940.0,0.71749012]
[1752235178415,1.29304148,117950.0,117940.0,0.71749012]
[1752235180924,1.29304148,117950.0,117940.0,0.67510672]
[1752235181123,1.29304148,117950.0,117940.0,0.01362]
[1752235181925,1.23197902,117950.0,117940.0,0.01362]
[1752235182125,0.1695508,117930.0,117920.0,0.01879333]
[1752235182327,1.59395659,117930.0,117920.0,0.18835853]
[1752235182527,1.65705659,117930.0,117920.0,0.18835853]
[1752235182926,1.31084661,117930.0,117920.0,0.18835853]
[1752235183321,1.31084661,117930.0,117920.0,0.19135853]
[1752235183530,1.31084661,117930.0,117920.0,0.19435853]
[1752235183830,1.31084661,117930.0,117920.0,0.60155555]
[1752235184032,1.31084661,117930.0,117920.0,0.59855555]
[1752235184235,1.31084661,117930.0,117920.0,0.59955555]
[1752235184431,1.31946108,117930.0,117920.0,0.19235853]
[1752235184634,1.31946108,117930.0,117920.0,0.59955555]
[1752235184833,0.91226406,117930.0,117920.0,0.19235853]
[1752235185234,0.28724406,117930.0,117920.0,0.55501085]
[1752235185434,0.87952406,117930.0,117920.0,0.61871085]
[1752235186134,0.87952406,117930.0,117920.0,0.25605853]
[1752235186534,0.28724406,117930.0,117920.0,0.25605853]
[1752235186725,0.87948406,117930.0,117920.0,0.25605853]
[1752235187536,0.91194406,117930.0,117920.0,0.22375853]
[1752235188136,0.91194406,117930.0,117920.0,0.22275853]
[1752235189434,0.85095702,117930.0,117920.0,0.22275853]
[1752235189937,0.91194406,117930.0,117920.0,0.22275853]
[1752235190126,0.85095702,117930.0,117920.0,0.22275853]
[1752235190733,0.83326527,117930.0,117920.0,0.20666119]
[1752235191137,0.83326527,117930.0,117920.0,0.20366119]
[1752235192938,0.83426527,117930.0,117920.0,0.20366119]
[1752235193238,0.83526527,117930.0,117920.0,0.20366119]
[1752235193834,1.19791759,117930.0,117920.0,0.17226139]
[1752235196738,1.25890463,117930.0,117920.0,0.17226139]
[1752235200035,0.30405231,117930.0,117920.0,0.17226139]
[1752235200438,0.83490527,117930.0,117920.0,0.17226139]
[1752235200642,0.89589231,117930.0,117920.0,0.17226139]
[1752235200842,0.30405231,117930.0,117920.0,0.17226139]
[1752235201043,0.89589231,117930.0,117920.0,0.17226139]
[1752235201440,0.30405231,117930.0,117920.0,0.17226139]
[1752235201640,0.30405231,117930.0,117920.0,0.53491371]
[1752235201840,0.83295231,117930.0,117920.0,0.20436139]
[1752235202144,0.77196527,117930.0,117920.0,0.23516139]
[1752235202741,0.77196527,117930.0,117920.0,0.59781371]
[1752235203136,0.002,117930.0,117920.0,0.59781371]
[1752235203342,0.59376,117930.0,117920.0,0.59781371]
[1752235203536,0.002,117930.0,117920.0,0.60626867]
[1752235203738,0.59376,117930.0,117920.0,0.60626867]
[1752235204738,0.002,117930.0,117920.0,0.60626867]
[1752235205042,0.002,117930.0,117920.0,0.96892099]
[1752235205440,0.001,117930.0,117920.0,0.24361635]
[1752235205646,0.001,117930.0,117920.0,0.96892099]
[1752235205837,0.59172,117940.0,117930.0,0.169551]
[1752235206041,0.59172,117940.0,117930.0,0.59750332]
[1752235206339,0.65270704,117940.0,117930.0,0.59750332]
[1752235207148,0.65370704,117940.0,117930.0,0.59750332]
[1752235208240,0.65470704,117940.0,117930.0,0.59750332]
[1752235208445,0.002,117940.0,117930.0,0.59750332]
[1752235208741,0.59364,117940.0,117930.0,0.234851]
[1752235208948,0.59364,117940.0,117930.0,0.59750332]
[1752235209645,0.7631767,117940.0,117930.0,0.59750332]
[1752235209944,0.82416374,117940.0,117930.0,0.59750332]
[1752235210444,0.7631767,117940.0,117930.0,0.59750332]
[1752235210645,0.82416374,117940.0,117930.0,0.59750332]
[1752235210847,0.7631767,117940.0,117930.0,0.59750332]
[1752235211042,0.82416374,117940.0,117930.0,0.234851]
[1752235211245,0.88836374,117940.0,117930.0,0.234851]
[1752235213050,0.8273767,117940.0,117930.0,0.234851]
[1752235213749,0.88840331,117940.0,117930.0,0.234851]
[1752235214449,0.88840331,117940.0,117930.0,0.59750332]
[1752235214649,0.88840331,117940.0,117930.0,0.234851]
[1752235214848,0.88840331,117940.0,117930.0,0.59750332]
[1752235216651,0.88840331,117940.0,117930.0,0.202051]
[1752235216952,1.25105563,117940.0,117930.0,0.169551]
[1752235217348,0.88840331,117940.0,117930.0,0.53220332]
[1752235218253,0.88840331,117940.0,117930.0,0.169551]
[1752235218454,0.65430661,117940.0,117930.0,0.53220332]
[1752235218655,0.23256371,117940.0,117930.0,0.59430332]
[1752235218952,0.82376371,117940.0,117930.0,0.59430332]
[1752235219745,0.06302661,117940.0,117930.0,0.59430332]
[1752235219951,0.82372371,117940.0,117930.0,0.59430332]
[1752235221054,0.59316,117940.0,117930.0,0.59430332]
[1752235221756,0.7626971,117940.0,117930.0,0.59430332]
[1752235221952,0.7626971,117940.0,117930.0,0.231651]
[1752235222154,0.7626971,117940.0,117930.0,0.59430332]
[1752235222352,0.7626971,117940.0,117930.0,0.61055377]
[1752235223147,0.82368974,117940.0,117930.0,0.61055377]
[1752235223857,0.06299264,117940.0,117930.0,0.61055377]
[1752235224055,0.65403264,117940.0,117930.0,0.61055377]
[1752235224558,0.82356974,117940.0,117930.0,0.61055377]
[1752235225156,0.85496974,117940.0,117930.0,0.61055377]
[1752235225557,0.7939771,117940.0,117930.0,0.61055377]
[1752235227055,0.87027534,117940.0,117930.0,0.61055377]
[1752235227257,0.7939771,117940.0,117930.0,0.61055377]
[1752235227459,0.87027534,117940.0,117930.0,0.61055377]
[1752235228959,0.7939771,117940.0,117930.0,0.61055377]
[1752235229261,0.62432,117940.0,117930.0,0.61055377]
[1752235229559,0.7938571,117940.0,117930.0,0.61055377]
[1752235229860,0.62432,117940.0,117930.0,0.61055377]
[1752235230250,0.68534076,117940.0,117930.0,0.24790145]
[1752235230453,0.68534076,117940.0,117930.0,0.61055377]
[1752235230650,0.002,117940.0,117930.0,0.61055377]
[1752235230852,0.002,117940.0,117930.0,1.20143377]
[1752235231760,0.001,117940.0,117930.0,1.22444529]
[1752235231956,0.001,117940.0,117930.0,1.20143377]
[1752235233158,0.65284,117950.0,117940.0,0.1695356]
[1752235233358,0.65284,117950.0,117940.0,0.53218792]
[1752235233558,0.71386076,117950.0,117940.0,0.53218792]
[1752235233960,0.71386076,117950.0,117940.0,0.1695356]
[1752235234163,0.06102076,117950.0,117940.0,0.53218792]
[1752235234464,0.59176,117950.0,117940.0,0.59638792]
[1752235234765,0.59276,117950.0,117940.0,0.59638792]
[1752235236462,0.002,117950.0,117940.0,0.59738792]
[1752235242266,0.002,117950.0,117940.0,0.2347356]
[1752235242468,0.064,117950.0,117940.0,0.59738792]
[1752235242972,0.064,117950.0,117940.0,0.2347356]
[1752235243173,0.064,117950.0,117940.0,0.59738792]
[1752235243673,0.064,117950.0,117940.0,0.2347356]
[1752235243873,0.064,117950.0,117940.0,0.59738792]
[1752235244273,0.064,117950.0,117940.0,0.2347356]
[1752235244473,0.064,117950.0,117940.0,0.59738792]
[1752235251589,0.002,117950.0,117940.0,0.59738792]
[1752235253382,0.001,117950.0,117940.0,0.59738792]
[1752235255588,0.30260989,117970.0,117960.0,0.1695066]
[1752235255783,0.30260989,117970.0,117960.0,0.53215892]
[1752235256092,0.13311719,117970.0,117960.0,0.53215892]
[1752235256591,0.13511719,117970.0,117960.0,0.53215892]
[1752235257392,0.13711719,117970.0,117960.0,0.53215892]
[1752235257996,0.006,117970.0,117960.0,0.89481124]
[1752235258290,0.006,117970.0,117960.0,1.13636424]
[1752235259291,0.005,117970.0,117960.0,1.13636424]
[1752235259795,0.005,117970.0,117960.0,1.15934155]
[1752235259991,0.004,117970.0,117960.0,1.15934155]
[1752235260590,0.004,117970.0,117960.0,0.62714523]
[1752235260786,0.1734922,117970.0,117960.0,1.3496666]
[1752235260986,0.2365922,117970.0,117960.0,0.1695066]
[1752235261189,0.1695066,117960.0,117950.0,0.97579944]
[1752235261388,0.2326066,117960.0,117950.0,0.59036568]
[1752235261594,0.2326066,117960.0,117950.0,0.18533626]
[1752235261795,0.2326066,117960.0,117950.0,0.54798858]
[1752235262090,0.24125564,117960.0,117950.0,0.54798858]
[1752235262497,0.24125564,117960.0,117950.0,0.18534806]
[1752235262690,0.24125564,117960.0,117950.0,0.54800038]
[1752235262889,0.2326066,117960.0,117950.0,0.54800038]
[1752235263094,0.2326066,117960.0,117950.0,0.18534806]
[1752235263594,0.2326066,117960.0,117950.0,0.54800038]
[1752235264194,0.2326066,117960.0,117950.0,0.55000038]
[1752235264395,0.2326066,117960.0,117950.0,0.18734806]
[1752235264596,0.2326066,117960.0,117950.0,0.002]
[1752235265094,0.24101952,117960.0,117950.0,0.002]
[1752235265293,0.30204028,117960.0,117950.0,0.002]
[1752235265495,0.169521,117950.0,117940.0,0.1705235]
[1752235265694,0.233421,117950.0,117940.0,0.1705235]
[1752235265894,0.233421,117950.0,117940.0,0.53317582]
[1752235267391,0.233421,117950.0,117940.0,0.001]
[1752235267593,0.25081603,117950.0,117940.0,0.001]
[1752235267895,0.31183679,117950.0,117940.0,0.001]
[1752235268394,0.31183679,117950.0,117940.0,0.53318772]
[1752235268593,0.25081603,117950.0,117940.0,0.53318772]
[1752235268784,0.25081603,117950.0,117940.0,0.36365232]
[1752235269390,0.25081603,117950.0,117940.0,0.001]
[1752235269596,0.25081603,117950.0,117940.0,0.36365232]
[1752235269998,0.31183679,117950.0,117940.0,0.36365232]
[1752235270398,0.31183679,117950.0,117940.0,0.53318772]
[1752235270598,0.31183679,117950.0,117940.0,0.36365232]
[1752235271093,0.25081603,117950.0,117940.0,0.53318772]
[1752235274802,0.97241603,117950.0,117940.0,0.36365232]
[1752235275802,0.97241603,117950.0,117940.0,0.53318772]
[1752235277405,0.97241603,117950.0,117940.0,0.36365232]
[1752235277604,0.97241603,117950.0,117940.0,0.53318772]
[1752235281408,0.80289503,117950.0,117940.0,0.53318772]
[1752235281610,0.80289503,117950.0,117940.0,0.59758772]
[1752235282807,0.97241603,117950.0,117940.0,0.59758772]
[1752235283009,0.80289503,117950.0,117940.0,0.59758772]
[1752235283208,0.80289503,117950.0,117940.0,0.62066217]
[1752235284816,0.97241603,117950.0,117940.0,0.62066217]
[1752235285113,0.80289503,117950.0,117940.0,0.62066217]
[1752235285412,0.80289503,117950.0,117940.0,0.68001217]
[1752235286214,0.97241603,117950.0,117940.0,0.68001217]
[1752235286809,0.80289503,117950.0,117940.0,0.68001217]
[1752235287512,0.80289503,117950.0,117940.0,0.65693772]
[1752235288915,0.97241603,117950.0,117940.0,0.65693772]
[1752235289814,0.97341603,117950.0,117940.0,0.65693772]
[1752235290519,0.80389503,117950.0,117940.0,0.65693772]
[1752235290719,0.77189503,117950.0,117940.0,0.65693772]
[1752235291219,0.77289503,117950.0,117940.0,0.65693772]
[1752235292420,0.74099503,117950.0,117940.0,0.65693772]
[1752235293121,0.7236,117950.0,117940.0,0.65693772]
[1752235294019,0.893121,117950.0,117940.0,1.24665772]
[1752235295217,0.923721,117950.0,117940.0,1.24665772]
[1752235297024,0.923721,117950.0,117940.0,0.65693772]
[1752235297323,0.956921,117950.0,117940.0,1.24661772]
[1752235300620,0.956921,117950.0,117940.0,1.21501772]
[1752235300923,0.956921,117950.0,117940.0,0.06035]
[1752235300924,0.97435381,117950.0,117940.0,0.06035]
[1752235302624,1.33700613,117950.0,117940.0,0.06035]
[1752235302829,1.39802689,117950.0,117940.0,0.06035]
[1752235303528,1.98758689,117950.0,117940.0,0.06035]
[1752235303827,1.39802689,117950.0,117940.0,0.06035]
[1752235304024,1.98758689,117950.0,117940.0,0.06035]
[1752235304223,1.03537457,117950.0,117940.0,0.06035]
[1752235304424,1.62493457,117950.0,117940.0,0.42300232]
[1752235304628,1.62493457,117950.0,117940.0,0.06035]
[1752235304822,1.03537457,117950.0,117940.0,0.06035]
[1752235305128,1.62493457,117950.0,117940.0,0.06035]
[1752235305627,1.56391381,117950.0,117940.0,0.06035]
[1752235306127,1.62496481,117950.0,117940.0,0.06035]
[1752235306328,1.62492481,117950.0,117940.0,0.59253762]
[1752235306725,1.62492481,117950.0,117940.0,0.42300232]
[1752235307626,1.62492481,117950.0,117940.0,0.59253762]
[1752235310829,1.56391381,117950.0,117940.0,0.06035]
[1752235311026,1.62492481,117950.0,117940.0,0.06035]
[1752235311528,1.56391381,117950.0,117940.0,0.06035]
[1752235315032,1.56391381,117950.0,117940.0,0.59253762]
[1752235315425,0.97153377,117950.0,117940.0,0.59253762]
[1752235315627,0.78457996,117950.0,117940.0,0.65563762]
[1752235315828,0.7236,117950.0,117940.0,0.65563762]
[1752235316129,0.3628,117950.0,117940.0,0.65563762]
[1752235317736,0.3628,117950.0,117940.0,0.67682762]
[1752235320334,0.3618,117950.0,117940.0,0.67682762]
[1752235320531,0.3628,117950.0,117940.0,0.67682762]
[1752235321035,0.3628,117950.0,117940.0,1.26618762]
[1752235321233,0.3618,117950.0,117940.0,1.26618762]
[1752235321934,0.3608,117950.0,117940.0,1.26618762]
[1752235323534,1.24474698,117960.0,117950.0,0.169521]
[1752235323735,1.60554698,117960.0,117950.0,0.53217332]
[1752235324737,1.60654698,117960.0,117950.0,0.53217332]
[1752235324930,1.04854698,117960.0,117950.0,0.53217332]
[1752235325435,1.04854698,117960.0,117950.0,0.56507332]
[1752235326137,1.00616928,117960.0,117950.0,0.56507332]
[1752235326437,1.00716928,117960.0,117950.0,0.56507332]
[1752235328139,1.59640928,117960.0,117950.0,0.56507332]
[1752235329142,1.59640928,117960.0,117950.0,0.62441332]
[1752235329940,1.59640928,117960.0,117950.0,0.59151332]
[1752235330336,1.59640928,117960.0,117950.0,0.228861]
[1752235330538,1.59640928,117960.0,117950.0,0.59151332]
[1752235336247,1.37604,117960.0,117950.0,0.59151332]
[1752235336438,1.5455466,117960.0,117950.0,0.59151332]
[1752235338945,1.5455466,117960.0,117950.0,0.228861]
[1752235339144,1.5455466,117960.0,117950.0,0.59151332]
[1752235340447,1.60652656,117960.0,117950.0,0.59151332]
[1752235340947,1.5455466,117960.0,117950.0,0.59151332]
[1752235341146,1.60652656,117960.0,117950.0,0.59151332]
[1752235342552,1.01728656,117960.0,117950.0,0.59151332]
[1752235342743,1.60620656,117960.0,117950.0,0.59151332]
[1752235342943,1.5452266,117960.0,117950.0,0.59151332]
[1752235343144,1.5451866,117960.0,117950.0,0.59151332]
[1752235345251,1.5451866,117960.0,117950.0,0.61445791]
[1752235345647,0.9563066,117960.0,117950.0,0.61445791]
[1752235345851,0.7236,117960.0,117950.0,0.61445791]
[1752235346051,0.7236,117960.0,117950.0,1.04270718]
[1752235346249,0.7236,117960.0,117950.0,0.68005486]
[1752235349452,0.7236,117960.0,117950.0,0.70124486]
[1752235349652,0.002,117960.0,117950.0,0.70124486]
[1752235351060,0.002,117960.0,117950.0,0.67830332]
[1752235355157,0.001,117960.0,117950.0,0.67830332]
[1752235356764,0.41299338,117970.0,117960.0,0.1695066]
[1752235356957,0.41299338,117970.0,117960.0,1.12071892]
[1752235357861,0.44459338,117970.0,117960.0,1.12071892]
[1752235358863,0.44459338,117970.0,117960.0,1.12913074]
[1752235359663,0.44559338,117970.0,117960.0,1.12913074]
[1752235361559,0.44659338,117970.0,117960.0,1.12913074]
[1752235363860,0.44659338,117970.0,117960.0,1.16093074]
[1752235366763,0.44659338,117970.0,117960.0,1.61346228]
[1752235367566,0.44659338,117970.0,117960.0,1.6811235]
[1752235369367,0.61608558,117970.0,117960.0,0.83385964]
[1752235369568,0.44659338,117970.0,117960.0,1.24145157]
[1752235371366,0.61608558,117970.0,117960.0,1.23299975]
[1752235371664,1.02367751,117970.0,117960.0,1.23295975]
[1752235371864,0.61588378,117970.0,117960.0,1.23295975]
[1752235372368,0.44639158,117970.0,117960.0,1.23295975]
[1752235372670,0.61588378,117970.0,117960.0,1.23295975]
[1752235373464,0.44639158,117970.0,117960.0,1.23295975]
[1752235375168,0.44639158,117970.0,117960.0,1.29229975]
[1752235375469,0.44673214,117970.0,117960.0,1.29229975]
[1752235376670,0.44673214,117970.0,117960.0,0.88470782]
[1752235376872,0.44673214,117970.0,117960.0,1.31530317]
[1752235377169,0.44673214,117970.0,117960.0,1.7228951]
[1752235378470,0.44673214,117970.0,117960.0,0.90771124]
[1752235378772,0.44673214,117970.0,117960.0,1.7228951]
[1752235380272,0.44673214,117970.0,117960.0,1.72289618]
[1752235381580,0.44673214,117970.0,117960.0,1.78479618]
[1752235382881,0.38283214,117970.0,117960.0,1.78479618]
[1752235384277,0.38283214,117970.0,117960.0,1.76179168]
[1752235384480,0.38283214,117970.0,117960.0,1.78479243]
[1752235385176,0.38283214,117970.0,117960.0,0.96960857]
[1752235385384,0.38283214,117970.0,117960.0,1.3772005]
[1752235385681,0.38283214,117970.0,117960.0,0.96960857]
[1752235385873,0.38283214,117970.0,117960.0,1.3772005]
[1752235386071,0.38283214,117970.0,117960.0,1.78479243]
[1752235389686,0.004,117970.0,117960.0,2.14559243]
[1752235389886,0.3608,117980.0,117970.0,0.1694923]
[1752235390082,0.3608,117980.0,117970.0,1.07177303]
[1752235390388,0.3608,117980.0,117970.0,0.64108423]
[1752235390885,0.3608,117980.0,117970.0,0.59566967]
[1752235391087,0.3608,117990.0,117980.0,0.2965802]
[1752235391288,0.3608,117990.0,117980.0,1.30961757]
[1752235392678,0.3648,117990.0,117980.0,1.30961757]
[1752235393282,0.3658,117990.0,117980.0,1.30961757]
[1752235393876,0.3658,117990.0,117980.0,0.9474402]
[1752235394076,0.3658,117990.0,117980.0,1.30957757]
[1752235396586,0.3658,117990.0,117980.0,1.36890757]
[1752235399686,0.005,117990.0,117980.0,0.78118757]
[1752235399887,0.3658,117990.0,117980.0,1.36878757]
[1752235400890,0.005,117990.0,117980.0,1.36878757]
[1752235401783,0.005,117990.0,117980.0,1.72958757]
[1752235401987,0.4285,118010.0,117980.0,1.83755114]
[1752235402287,0.42177996,118030.0,118020.0,0.1694205]
[1752235402487,0.4244,118030.0,118020.0,1.70671787]
[1752235402882,0.4244,118030.0,118020.0,1.71507858]
[1752235403088,0.4244,118030.0,118020.0,1.71307858]
[1752235403990,0.4284,118030.0,118020.0,1.71307858]
[1752235404185,0.4284,118030.0,118020.0,1.70471787]
[1752235404387,0.4284,118030.0,118020.0,0.1674205]
[1752235404592,1.00234657,118030.0,118020.0,0.7569405]
[1752235404793,0.95998357,118030.0,118020.0,0.7569405]
[1752235405192,0.4284,118030.0,118020.0,0.7569405]
[1752235405693,0.4284,118030.0,118020.0,1.11911787]
[1752235406586,0.4284,118030.0,118020.0,1.12744642]
[1752235407192,0.4284,118030.0,118020.0,1.12344642]
[1752235407793,0.4354,118030.0,118020.0,1.12344642]
[1752235408195,0.4354,118030.0,118020.0,1.15674642]
[1752235408996,0.4354,118030.0,118020.0,1.14841787]
[1752235411298,0.4354,118030.0,118020.0,1.15706801]
[1752235411299,0.4025,118030.0,118020.0,1.15706801]
[1752235411598,0.3718,118030.0,118020.0,1.15706801]
[1752235411795,0.3718,118030.0,118020.0,1.18976801]
[1752235414000,0.3698,118030.0,118020.0,1.18976801]
[1752235414499,0.3648,118030.0,118020.0,1.18976801]
[1752235415900,0.004,118030.0,118020.0,1.55056801]
[1752235417102,0.3648,118030.0,118020.0,1.18976801]
[1752235417298,0.004,118030.0,118020.0,1.18976801]
[1752235417504,0.3648,118030.0,118020.0,1.18976801]
[1752235418509,0.3648,118030.0,118020.0,1.25701917]
[1752235418808,0.004,118030.0,118020.0,1.25801917]
[1752235419311,0.004,118030.0,118020.0,1.33057395]
[1752235419816,0.004,118030.0,118020.0,1.31732917]
[1752235420011,0.004,118030.0,118020.0,1.33057393]
[1752235420512,0.004,118030.0,118020.0,1.33057389]
[1752235421108,0.004,118030.0,118020.0,1.35379788]
[1752235421307,0.004,118030.0,118020.0,1.33057389]
[1752235422115,0.003,118030.0,118020.0,1.33057389]
[1752235422809,0.002,118030.0,118020.0,1.33057389]
[1752235423010,0.3938,118040.0,118030.0,0.1694062]
[1752235423211,0.4252,118040.0,118030.0,0.1684062]
[1752235423411,0.4252,118040.0,118030.0,0.53058357]
[1752235426717,0.4252,118040.0,118030.0,0.55176357]
[1752235426919,0.4252,118040.0,118030.0,0.55276357]
[1752235430520,0.4252,118040.0,118030.0,0.58927634]
[1752235433224,0.4252,118040.0,118030.0,0.59127634]
[1752235434517,0.4252,118040.0,118030.0,0.57703215]
[1752235434726,0.4252,118040.0,118030.0,0.57803215]
[1752235435921,0.4252,118040.0,118030.0,0.94020952]
[1752235436125,0.033,118040.0,118030.0,1.00300952]
[1752235436423,0.3628,118050.0,118040.0,0.169392]
[1752235436623,0.3628,118050.0,118040.0,2.16953949]
[1752235437722,0.3628,118050.0,118040.0,1.80736212]
[1752235437923,0.3946,118050.0,118040.0,1.80736212]
[1752235438322,0.4252,118050.0,118040.0,1.80736212]
[1752235438621,0.4252,118050.0,118040.0,0.20590475]
[1752235438925,0.4252,118050.0,118040.0,0.79414475]
[1752235439122,0.4252,118050.0,118040.0,1.15632212]
[1752235440230,0.4252,118050.0,118040.0,0.79414475]
[1752235440530,0.4252,118050.0,118040.0,1.15632212]
[1752235440722,0.3628,118050.0,118040.0,1.49523091]
[1752235440923,0.3628,118050.0,118040.0,0.99263011]
[1752235441119,0.3628,118050.0,118040.0,1.55857091]
[1752235441326,0.3628,118050.0,118040.0,0.54481354]
[1752235441528,0.4284,118050.0,118040.0,1.13429354]
[1752235442330,0.4284,118050.0,118040.0,1.12204937]
[1752235442629,0.4284,118050.0,118040.0,0.53456937]
[1752235442831,0.4284,118050.0,118040.0,1.12404937]
[1752235444724,0.3628,118050.0,118040.0,1.48622674]
[1752235444927,0.3628,118050.0,118040.0,1.54942674]
[1752235445930,0.002,118050.0,118040.0,1.54942674]
[1752235446928,0.002,118050.0,118040.0,1.57298393]
[1752235447433,0.002,118050.0,118040.0,1.57298196]
[1752235449330,0.002,118050.0,118040.0,1.54942674]
[1752235450134,0.002,118050.0,118040.0,1.57299846]
[1752235452333,0.002,118050.0,118040.0,1.57399846]
[1752235453833,0.002,118050.0,118040.0,1.58912402]
[1752235454034,0.002,118050.0,118040.0,1.59112402]
[1752235460739,0.002,118050.0,118040.0,0.86676928]
[1752235460935,0.002,118050.0,118040.0,1.59112402]
[1752235462841,0.002,118050.0,118040.0,1.58812402]
[1752235463040,0.002,118050.0,118040.0,1.59012402]
[1752235463340,0.3628,118050.0,118040.0,1.59012402]
[1752235463540,0.002,118050.0,118040.0,1.59012402]
[1752235464443,0.3628,118050.0,118040.0,1.59012402]
[1752235465141,0.3628,118050.0,118040.0,0.86576928]
[1752235465442,0.3628,118050.0,118040.0,1.59012402]
[1752235467346,0.002,118050.0,118040.0,1.59012402]
[1752235467544,0.002,118050.0,118040.0,1.61292505]
[1752235467740,0.002,118050.0,118040.0,1.59012402]
[1752235468140,0.002,118050.0,118040.0,1.61292505]
[1752235468939,0.002,118050.0,118040.0,1.59012402]
[1752235469139,0.002,118050.0,118040.0,1.61292505]
[1752235472637,0.3628,118050.0,118040.0,1.59012402]
[1752235474441,0.002,118050.0,118040.0,1.61292505]
[1752235476246,0.002,118050.0,118040.0,1.63609788]
[1752235477150,0.002,118050.0,118040.0,1.62616667]
[1752235478248,0.42177996,118070.0,118040.0,2.27644357]
[1752235478453,0.3608,118070.0,118060.0,0.53154107]
[1752235478653,0.3608,118070.0,118060.0,1.73136648]
[1752235478951,0.3922,118070.0,118060.0,1.73136648]
[1752235479153,0.4225,118070.0,118060.0,1.73136648]
[1752235480347,0.4225,118070.0,118060.0,1.73236648]
[1752235480543,0.4225,118070.0,118060.0,1.75596476]
[1752235480948,0.4225,118070.0,118060.0,1.75796476]
[1752235481249,0.4225,118070.0,118060.0,1.78856476]
[1752235482457,0.4225,118070.0,118060.0,1.81926476]
[1752235482753,0.4225,118070.0,118060.0,1.8277495]
[1752235484451,0.4225,118070.0,118060.0,0.57420476]
[1752235484655,0.4225,118070.0,118060.0,1.16664476]
[1752235485445,0.4225,118070.0,118060.0,0.21202739]
[1752235485650,0.4225,118070.0,118060.0,1.16660476]
[1752235485858,0.4225,118070.0,118060.0,1.16648476]
[1752235486258,0.4225,118070.0,118060.0,0.80430739]
[1752235486551,0.4225,118070.0,118060.0,0.57420476]
[1752235486758,0.4225,118070.0,118060.0,1.16636476]
[1752235488153,0.4225,118070.0,118060.0,0.80418739]
[1752235488355,0.4225,118070.0,118060.0,1.16636476]
[1752235488754,0.4225,118070.0,118060.0,0.80418739]
[1752235488951,0.4225,118070.0,118060.0,1.16636476]
[1752235489154,0.4225,118070.0,118060.0,0.80418739]
[1752235489351,0.4225,118070.0,118060.0,1.16636476]
[1752235491156,0.4225,118070.0,118060.0,1.14176648]
[1752235491457,0.4225,118070.0,118060.0,1.14276648]
[1752235492153,0.4225,118070.0,118060.0,0.18842911]
[1752235492462,0.80204187,118070.0,118060.0,0.8039947]
[1752235492762,0.4398645,118070.0,118060.0,0.8039947]
[1752235492955,0.4398645,118070.0,118060.0,1.14256648]
[1752235496955,0.4398645,118070.0,118060.0,1.14208648]
[1752235497161,0.44813253,118070.0,118060.0,0.77990911]
[1752235497657,0.4398645,118070.0,118060.0,1.14208648]
[1752235498052,0.4398645,118070.0,118060.0,0.77990911]
[1752235498561,0.6092151,118070.0,118060.0,0.77990911]
[1752235499161,0.4398645,118070.0,118060.0,0.77990911]
[1752235500355,0.4398645,118070.0,118060.0,1.14208648]
[1752235501260,0.4398645,118070.0,118060.0,1.16569859]
[1752235501462,0.4398645,118070.0,118060.0,0.77990911]
[1752235501664,0.4398645,118070.0,118060.0,1.14208648]
[1752235503161,0.4398645,118070.0,118060.0,1.1656985]
[1752235503358,0.43079613,118070.0,118060.0,1.14208648]
[1752235503954,0.43079613,118070.0,118060.0,0.55060648]
[1752235504156,0.43079613,118070.0,118060.0,1.14152648]
[1752235504456,0.43079613,118070.0,118060.0,0.77934911]
[1752235504658,0.43079613,118070.0,118060.0,1.14152648]
[1752235505061,0.43079613,118070.0,118060.0,0.77934911]
[1752235505264,0.43079613,118070.0,118060.0,1.14152648]
[1752235505764,0.43079613,118070.0,118060.0,0.77934911]
[1752235505962,0.43079613,118070.0,118060.0,1.14152648]
[1752235508462,0.43079613,118070.0,118060.0,1.16509918]
[1752235509962,0.4225,118070.0,118060.0,1.16509918]
[1752235510667,0.4225,118070.0,118060.0,0.57417918]
[1752235510963,0.82948785,118070.0,118060.0,0.59541696]
[1752235512166,0.82948785,118070.0,118060.0,0.18842911]
[1752235512363,0.82948785,118070.0,118060.0,0.59541696]
[1752235512562,0.4225,118070.0,118060.0,0.18842911]
[1752235512763,0.82948785,118070.0,118060.0,0.59541696]
[1752235513170,0.4225,118070.0,118060.0,0.59541696]
[1752235514668,0.4225,118070.0,118060.0,0.61898261]
[1752235516069,0.4225,118070.0,118060.0,0.59541696]
[1752235516871,0.4225,118070.0,118060.0,0.18842911]
[1752235517065,0.4225,118070.0,118060.0,0.59541696]
[1752235517574,0.4225,118070.0,118060.0,0.22082911]
[1752235517867,0.4225,118070.0,118060.0,0.62781696]
[1752235518872,0.4225,118070.0,118060.0,0.22082911]
[1752235519169,0.4225,118070.0,118060.0,0.62781696]
[1752235521270,0.3608,118070.0,118060.0,0.62781696]
[1752235521470,0.07893347,118080.0,118070.0,0.1693505]
[1752235521666,0.07860702,118080.0,118070.0,0.64123835]
[1752235521869,0.07860702,118080.0,118070.0,2.2277862]
[1752235522069,0.01762706,118080.0,118070.0,2.5885862]
[1752235522265,0.002,118090.0,118080.0,0.1693361]
[1752235522463,0.002,118090.0,118080.0,1.0868349]
[1752235522768,0.002,118090.0,118080.0,1.42387366]
[1752235523174,0.002,118090.0,118080.0,1.44762485]
[1752235523471,0.002,118090.0,118080.0,1.46086207]
[1752235523767,0.002,118090.0,118080.0,1.47042588]
[1752235523966,0.002,118090.0,118080.0,1.4836631]
[1752235524167,0.002,118090.0,118080.0,1.46086207]
[1752235524362,0.002,118090.0,118080.0,1.86299067]
[1752235524563,0.002,118090.0,118080.0,1.48080385]
[1752235524966,0.002,118090.0,118080.0,1.3669299]
[1752235525163,0.002,118090.0,118080.0,1.34956804]
[1752235525369,0.572408,118120.0,118110.0,0.1692931]
[1752235525570,0.43964399,118120.0,118110.0,0.1692931]
[1752235525760,0.43964399,118120.0,118110.0,0.53074449]
[1752235525967,0.37844399,118120.0,118110.0,0.56274449]
[1752235526161,0.37844399,118120.0,118110.0,0.59354449]
[1752235526369,0.54772289,118120.0,118110.0,0.1692931]
[1752235526573,0.60852289,118120.0,118110.0,0.1692931]
[1752235528675,0.1692932,118110.0,118100.0,0.3174299]
[1752235528866,0.5927932,118110.0,118100.0,0.9063099]
[1752235529268,0.5927932,118110.0,118100.0,1.26776129]
[1752235531673,0.5927932,118110.0,118100.0,1.26876129]